Cogmind - Beta 15 @@@ ROGUE MODE // 2025.08.28 @ 20:04:23 Player: erkyp3rky Result: Self-destructed Performance ------------- Evolutions (4) 2000 Regions Visited (7) 1400 Robots Destroyed (22) 110 Value Destroyed (458) 458 Prototype IDs (4) 80 Alien Tech Used (0) 0 Bonus (-325) -325 TOTAL SCORE: 3723 Bonus ------- Friendly Fire -325 Cogmind --------- Core Integrity 850/850 Matter 5/300 Energy 69/100 System Corruption 0% Temperature Cool (0) Movement Hovering (120) Ox1 Location -6/Factory Parts ------- > --- POWER (2) -------- (None) > --- PROPULSION (4) --- Improved Hover Unit > --- UTILITY (7) ------ Medium Storage Unit Improved Sensor Array Improved Signal Interpreter Advanced Targeting Computer > --- WEAPON (2) ------- Advanced Beam Rifle > --- INVENTORY (10) --- Nuclear Core Advanced Heat Sink Improved Sensor Array Particle Charger Light Armor Plating Advanced Assault Cannon Advanced Assault Cannon Rocket Launcher Mini Grenade Launcher Katana Peak State ------------ > --- POWER ------------ Nuclear Core > --- PROPULSION ------- Improved Hover Unit Improved Hover Unit Improved Hover Unit Cooled Airjet > --- UTILITY ---------- Advanced Heat Sink Medium Storage Unit Improved Sensor Array Improved Signal Interpreter Advanced Targeting Computer Layered Light Armor Plating > --- WEAPON ----------- Advanced Beam Rifle Advanced Beam Rifle > --- INVENTORY -------- Improved Hover Unit Small Matter Pod Light Armor Plating High-powered Tractor Beam Advanced Beam Rifle Advanced Assault Cannon Advanced Assault Cannon Rocket Launcher Mini Grenade Launcher Katana [Rating: 43] Favorites ----------- Power Ion Engine Engine Ion Engine Power Core Nuclear Core Propulsion Light Treads Treads Light Treads Hover Unit Improved Hover Unit Utility Medium Storage Unit Device Seismic Detector Storage Medium Storage Unit Processor Advanced Targeting Computer Hackware Hacking Suite Protection Light Armor Plating Weapon Heavy EM Pulse Gun Energy Gun Heavy EM Pulse Gun Ballistic Gun Light Assault Rifle Ballistic Cannon Mini Assault Cannon Launcher Mini Grenade Launcher Slashing Weapon Katana Build | -11 -10 -10 -10 -9 -8 -7 -6 ------- Run | Yrd Mat Min Exi Min Mat Fac Fac Slots Evolved 8 | . . . . . 4 2 2 Power 1 | . . . . . . . 1 Propulsion 2 | . . . . . 2 . . Utility 5 | . . . . . 2 2 1 Weapon . | . . . . . . . . Parts Attached 39 | 7 3 . . . 13 16 . Power 3 | 1 . . . . 1 1 . Engine 2 | 1 . . . . 1 . . Core 1 | . . . . . . 1 . Reactor . | . . . . . . . . Propulsion 10 | 2 . . . . 3 5 . Treads 5 | 2 . . . . 3 . . Leg . | . . . . . . . . Wheel . | . . . . . . . . Hover 5 | . . . . . . 5 . Flight . | . . . . . . . . Utility 13 | 2 1 . . . 5 5 . Device 5 | 1 . . . . 2 2 . Storage 2 | 1 1 . . . . . . Processor 3 | . . . . . 2 1 . Hackware 1 | . . . . . 1 . . Protection 2 | . . . . . . 2 . Artifact . | . . . . . . . . Weapon 13 | 2 2 . . . 4 5 . Energy Gun 9 | 1 2 . . . 3 3 . Energy Cannon . | . . . . . . . . Ballistic Gun 1 | 1 . . . . . . . Ballistic Cannon 1 | . . . . . . 1 . Launcher 1 | . . . . . 1 . . Special Weapon . | . . . . . . . . Impact Weapon . | . . . . . . . . Slashing Weapon 1 | . . . . . . 1 . Piercing Weapon . | . . . . . . . . Special Melee Weapon . | . . . . . . . . Unidentified Prototypes 4 | . . . . . 1 3 . Corrupted Parts 2 | . 1 . . . 1 . . System Corruption 13 | . 8 . . . 5 . . Parts Lost . | . . . . . . . . Power . | . . . . . . . . Propulsion . | . . . . . . . . Utility . | . . . . . . . . Weapon . | . . . . . . . . Highest Loss Streak . | . . . . . . . . To Critical Strikes . | . . . . . . . . Average Backups 6 | . 3 4 5 5 7 7 9 Power . | . . . . . . . . Propulsion . | . . . . . . . . Utility 2 | . . 1 2 2 2 2 3 Weapon 3 | . 2 3 3 3 4 4 5 Tool/Special . | . . . . . . . . Unused Backups 12 | . . . . . . 6 6 Power . | . . . . . . . . Propulsion . | . . . . . . . . Utility 3 | . . . . . . 1 2 Weapon 9 | . . . . . . 5 4 Tool/Special . | . . . . . . . . Average Slot Usage (%) 92 | . 100 100 100 100 95 96 58 Engine 9 | . 14 14 14 14 9 4 . Treads 22 | . 28 28 28 28 33 7 . Hover 5 | . . . . . . 22 15 Device 15 | . 14 14 14 14 15 22 8 Storage 10 | . 14 14 14 14 9 7 6 Processor 5 | . . . . . 6 7 13 Hackware 1 | . . . . . 3 . . Protection 1 | . . . . . . 4 2 Energy Gun 19 | . 27 28 28 28 17 14 7 Peak Build Rating 43 | 7 9 10 10 10 23 43 43 Average Rating 18 | 5 8 9 10 10 19 34 28 On Entrance 14 | . 7 9 10 10 10 23 43 Naked Turns . | . . . . . . . . Heaviest Build 30 | 14 22 22 22 22 25 30 27 Greatest Support 80 | 40 40 40 40 40 80 80 29 Greatest Overweight (x) 3 | . . . . . . 3 2 Average Overweight (x) . | . . . . . . . . Largest Inventory Capacity 10 | 8 10 10 10 10 10 10 10 Average Capacity 9 | 7 9 10 10 10 10 10 10 Most Carried 10 | . 4 5 5 5 10 10 10 Average Carried 6 | . 3 4 5 5 7 7 9 Final Capacity 10 | 8 10 10 10 10 10 10 10 Final Carried 10 | . 4 5 5 5 10 10 10 Class Distribution -------------------- 62% | Mutant 37% | Scavenger-Mutant Dominant Class ---------------- Mutant | -10/Materials Mutant | -10/Mines Mutant | -10/Exiles Mutant | -9/Mines Scavenger-Mutant | -8/Materials Scavenger-Mutant | -7/Factory Mutant | -6/Factory Resources | -11 -10 -10 -10 -9 -8 -7 -6 ----------- Run | Yrd Mat Min Exi Min Mat Fac Fac Matter Collected 454 | 230 78 . . 26 120 . . Remotely . | . . . . . . . . Salvage Created 644 | 22 172 . . 62 388 . . Parts 41 | 4 9 3 . . 25 . . Haulers Intercepted 2 | . 2 . . . . . . Recyclers Shooed 3 | 1 . . . . . . 2 Parts Field Recycled . | . . . . . . . . Retrieved Matter . | . . . . . . . . Parts Self-Destructed . | . . . . . . . . Prevented . | . . . . . . . . Kills | -11 -10 -10 -10 -9 -8 -7 -6 ------- Run | Yrd Mat Min Exi Min Mat Fac Fac Combat Hostiles Destroyed 15 | . 1 . . . 14 . . Guns 8 | . 1 . . . 7 . . AOE 7 | . . . . . 7 . . Classes Destroyed 8 | 1 3 . . . 4 . . Worker 1 | . . . . . 1 . . Tunneler 2 | 1 . 1 . . . . . Hauler 2 | . 2 . . . . . . Operator 1 | . 1 . . . . . . Swarmer 8 | . . . . . 8 . . Grunt 4 | . 1 . . . 3 . . Sentry 2 | . . . . . 2 . . Hunter 1 | . . . . . 1 . . Thug 1 | . . . . 1 . . . Best Kill Streak 5 | 1 2 1 . . 5 . . Combat Bots Only 4 | . 1 . . . 4 . . Max Kills in Single Turn 3 | 1 1 1 . 1 3 . . Gunslinging . | . . . . . . . . Exploded 2 | . . . . . 2 . . Melee . | . . . . . . . . Uniques/NPCs Destroyed . | . . . . . . . . Combat | -11 -10 -10 -10 -9 -8 -7 -6 -------- Run | Yrd Mat Min Exi Min Mat Fac Fac Hostile Shots Fired 40 | . . . . . 40 . . Missed 12 | . . . . . 12 . . Hits 28 | . . . . . 28 . . Projectile 28 | . . . . . 28 . . Critical Strikes 1 | . . . . . 1 . . Damage Taken 442 | . . . . 32 406 . 4 Core 50 | . . . . . 50 . . Absorbed by Shields . | . . . . . . . . Core Remaining (%) 97 | 100 . . . 100 90 100 . Volleys Fired 60 | 10 11 . . 4 23 2 10 Largest 2 | 1 2 . . 2 2 2 2 Hottest 122 | 20 90 . . 90 90 122 122 Shots Fired 95 | 10 22 . . 8 38 4 13 Gun 90 | 10 22 . . 8 33 4 13 Cannon . | . . . . . . . . Launcher 5 | . . . . . 5 . . Special . | . . . . . . . . Kinetic 10 | 10 . . . . . . . Thermal 17 | . . . . . . 4 13 Explosive 5 | . . . . . 5 . . Electromagnetic 63 | . 22 . . 8 33 . . Robot Hit Streak 13 | 4 3 . . 7 13 . 7 Robot Miss Streak 3 | 2 3 . . 3 1 . 2 Penetration Max . | . . . . . . . . Secondary Targets 1 | . . . . . 1 . . Max Gunslinging Chain 1 | . . . . . 1 . . Shots Hit Robots 60 | 6 11 . . 7 29 . 7 Core Hits 31 | 2 4 . . 1 21 . 3 Critical Kills . | . . . . . . . . Critical Parts Destroyed . | . . . . . . . . Critical Strikes 3 | . . . . . 2 . 1 Burn 1 | . . . . . . . 1 Corrupt 2 | . . . . . 2 . . Melee Attacks 1 | . . . . . . 1 . Impact . | . . . . . . . . Slashing 1 | . . . . . . 1 . Piercing . | . . . . . . . . Sneak Attacks . | . . . . . . . . Combat Hostiles . | . . . . . . . . Follow-up Attacks . | . . . . . . . . Damage Inflicted 1508 | 62 202 1 . 197 895 . 151 Guns 985 | 62 202 . . 115 466 . 140 Cannons . | . . . . . . . . Explosions 511 | . . . . 82 429 . . Melee . | . . . . . . . . Ramming 12 | . . 1 . . . . 11 Kinetic 62 | 62 . . . . . . . Thermal 222 | . . . . 82 . . 140 Explosive 429 | . . . . . 429 . . Electromagnetic 783 | . 202 . . 115 466 . . Impact . | . . . . . . . . Slashing . | . . . . . . . . Piercing . | . . . . . . . . Highest Corruption 8 | . 8 8 8 8 5 . . Average Corruption 6 | . 8 8 8 8 5 . . Corruption Purged . | . . . . . . . . Corruption Blocked . | . . . . . . . . Effects 29 | . 9 5 1 2 12 . . Message Errors 7 | . 1 3 1 . 2 . . Matter Fused 4 | . 3 . . . 1 . . Heat Flow Errors 3 | . 1 . . 1 1 . . Energy Discharges 6 | . 1 2 . 1 2 . . Data Loss (minor) 3 | . 3 . . . . . . Data Loss (major) 1 | . . . . . 1 . . Alerts 2 | . . . . . 2 . . Weapon Failures 3 | . . . . . 3 . . Overload Shots . | . . . . . . . . Overflow Damage 29 | . . . . 1 28 . . Projectiles . | . . . . . . . . Explosions 29 | . . . . 1 28 . . Melee . | . . . . . . . . Knockbacks . | . . . . . . . . Impact . | . . . . . . . . Kinetic . | . . . . . . . . Secondary . | . . . . . . . . Self-Inflicted Damage 56 | . . . . 32 20 . 4 Shots 2 | . . . . 1 1 . . Rammed 5 | . . . . . . . 5 Targets Rammed 6 | . . 1 . . . . 5 Kicked . | . . . . . . . . Crushed 1 | . . 1 . . . . . Highest Temperature 245 | . 229 . . 132 245 69 60 Average Temperature 67 | . 63 . . 63 86 37 32 Received Heat Transfer 135 | . . . . . 135 . . Siege Activations . | . . . . . . . . Martial Activations . | . . . . . . . . Shielding Activations . | . . . . . . . . Robots Disrupted . | . . . . . . . . Combat Hostiles . | . . . . . . . . Robots Corrupted 1 | . . . . 1 . . . Combat Hostiles . | . . . . . . . . Parts Fried 6 | . 3 . . . 3 . . Impact Corruptions . | . . . . . . . . Robots Melted . | . . . . . . . . Combat Hostiles . | . . . . . . . . Parts Melted . | . . . . . . . . Heat Transferred 383 | . . . . 50 . . 333 Parts Sabotaged . | . . . . . . . . Parts Stolen . | . . . . . . . . Parts Stripped . | . . . . . . . . Power Chain Reactions 1 | . . . . 1 . . . Alert | -11 -10 -10 -10 -9 -8 -7 -6 ------- Run | Yrd Mat Min Exi Min Mat Fac Fac Maximum Alert Level . | . . . . . . . . Low Security (%) 100 | 100 100 100 . 100 100 100 100 Level 1 . | . . . . . . . . Level 2 . | . . . . . . . . Level 3 . | . . . . . . . . Level 4 . | . . . . . . . . Level 5 . | . . . . . . . . High Security . | . . . . . . . . Max Security . | . . . . . . . . Peak Influence 165 | 5 30 5 . 7 165 67 18 Initial 67 | . . . . . . 67 . Average 36 | . 4 . . 1 94 19 1 Influence Increases 514 | 5 54 5 . 7 409 16 18 Destroy 0b10 Robot/C 300 | . 20 . . . 280 . . Destroy 0b10 Robot/NC 30 | 5 15 5 . . 5 . . Destroy Leader 74 | . 14 . . . 60 . . Successful Hack 27 | . 5 . . . 4 . 18 Disable Machine 30 | . . . . . 15 15 . Destroy Structure 38 | . . . . 7 30 1 . Lose Combat Pursuer 15 | . . . . . 15 . . Influence Decreases 514 | 5 54 5 . 7 260 164 19 Entered New Map 83 | . . . . . . 82 1 Time Decay 431 | 5 54 5 . 7 260 82 18 Squads Dispatched 3 | . 1 . . 1 . . 1 Investigation . | . . . . . . . . Extermination . | . . . . . . . . Reinforcement 2 | . 1 . . . . . 1 Assault 1 | . . . . 1 . . . Garrison . | . . . . . . . . Intercept . | . . . . . . . . Searches Triggered . | . . . . . . . . Construction Impeded 1 | . . . . . . . 1 Haulers Reinforced . | . . . . . . . . Active Scanning Responses . | . . . . . . . . Cargo Convoy Interrupts . | . . . . . . . . Stealth | -11 -10 -10 -10 -9 -8 -7 -6 --------- Run | Yrd Mat Min Exi Min Mat Fac Fac Distress Signals 2 | . 1 . . . 1 . . Communications Jammed . | . . . . . . . . Distress Signals . | . . . . . . . . Times Spotted 29 | . 7 . . . 21 . 1 Peak Tracking Total 5 | . 4 . . . 5 . . Tactical Retreats 1 | . . . . . 1 . . Traps | -11 -10 -10 -10 -9 -8 -7 -6 ------- Run | Yrd Mat Min Exi Min Mat Fac Fac Traps Triggered 4 | . . . . . . . 4 Indirectly . | . . . . . . . . Trap Hack Attempts . | . . . . . . . . Triggered . | . . . . . . . . Disarmed . | . . . . . . . . Reprogrammed . | . . . . . . . . Reused . | . . . . . . . . Traps Extracted . | . . . . . . . . Installed . | . . . . . . . . Triggered . | . . . . . . . . Machines | -11 -10 -10 -10 -9 -8 -7 -6 ---------- Run | Yrd Mat Min Exi Min Mat Fac Fac Machines Disabled 2 | . . . . . 1 1 . Max in Single Turn 1 | . . . . . 1 1 . Machines Repaired . | . . . . . . . . Machines Dismantled . | . . . . . . . . Machines Sabotaged . | . . . . . . . . Overloaded Fab Kills . | . . . . . . . . Hacking | -11 -10 -10 -10 -9 -8 -7 -6 --------- Run | Yrd Mat Min Exi Min Mat Fac Fac Machines Accessed 7 | . 3 . . . 2 . 2 Terminals 6 | . 3 . . . 2 . 1 Fabricators . | . . . . . . . . Repair Stations . | . . . . . . . . Recycling Units 1 | . . . . . . . 1 Scanalyzers . | . . . . . . . . Garrison Access . | . . . . . . . . Total Hacks 17 | . 9 . . . 4 . 4 Successful 7 | . 4 . . . 1 . 2 Failed 10 | . 5 . . . 3 . 2 Catastrophic 1 | . . . . . 1 . . Database Lockouts . | . . . . . . . . Manual 15 | . 11 . . . 4 . . Terminals 15 | . 9 . . . 4 . 2 Fabricators . | . . . . . . . . Repair Stations . | . . . . . . . . Recycling Units 2 | . . . . . . . 2 Scanalyzers . | . . . . . . . . Garrison Access . | . . . . . . . . Terminal Hacks 3 | . 2 . . . . . 1 Robot Analysis 2 | . 2 . . . . . . Level Access Points 1 | . . . . . . . 1 Fabricator Hacks . | . . . . . . . . Repair Station Hacks . | . . . . . . . . Recycling Unit Hacks 1 | . . . . . . . 1 Process 1 | . . . . . . . 1 Scanalyzer . | . . . . . . . . Garrison Access Hacks . | . . . . . . . . Unauthorized Hacks 3 | . 2 . . . 1 . . Terminals 3 | . 2 . . . 1 . . Botnet 3 | . 2 . . . 1 . . Fabricators . | . . . . . . . . Repair Stations . | . . . . . . . . Recycling Units . | . . . . . . . . Scanalyzers . | . . . . . . . . Garrison Access . | . . . . . . . . Data Cores Recovered 1 | . 1 . . . . . . Used . | . . . . . . . . Hacking Detections 7 | . 3 . . . 2 . 2 Full Trace Events . | . . . . . . . . Feedback Events . | . . . . . . . . Feedback Blocked . | . . . . . . . . Robot Schematics Acquired . | . . . . . . . . Robots Built . | . . . . . . . . Authchips . | . . . . . . . . Time . | . . . . . . . . Total Robot Build Rating . | . . . . . . . . Part Schematics Acquired . | . . . . . . . . Parts Built . | . . . . . . . . Authchips . | . . . . . . . . Time . | . . . . . . . . Total Part Build Rating . | . . . . . . . . Parts Repaired . | . . . . . . . . Time . | . . . . . . . . Parts Recycled . | . . . . . . . . Recycled Matter 40 | . . . . . . . 40 Retrieved Matter . | . . . . . . . . Retrieved Components . | . . . . . . . . Parts Scanalyzed . | . . . . . . . . Part Schematics Acquired . | . . . . . . . . Parts Damaged . | . . . . . . . . Bothacking | -11 -10 -10 -10 -9 -8 -7 -6 ------------ Run | Yrd Mat Min Exi Min Mat Fac Fac Used RIF Installer . | . . . . . . . . Robots Hacked . | . . . . . . . . Non-combat . | . . . . . . . . Combat . | . . . . . . . . Robot Hacks Applied . | . . . . . . . . Relay Couplers Released . | . . . . . . . . Fabnet Peak Effective % . | . . . . . . . . Robots Rewired . | . . . . . . . . Allies Hacked . | . . . . . . . . Hacks Repelled . | . . . . . . . . Allies | -11 -10 -10 -10 -9 -8 -7 -6 -------- Run | Yrd Mat Min Exi Min Mat Fac Fac Total Allies . | . . . . . . . . Largest Group . | . . . . . . . . Highest-Rated Group . | . . . . . . . . Highest-Rated Ally . | . . . . . . . . Total Orders . | . . . . . . . . Ally Attacks . | . . . . . . . . Total Damage . | . . . . . . . . Kills . | . . . . . . . . Allies Corrupted . | . . . . . . . . Allies Melted . | . . . . . . . . Intel | -11 -10 -10 -10 -9 -8 -7 -6 ------- Run | Yrd Mat Min Exi Min Mat Fac Fac Active Infowar (turns) 1692 | 5 341 185 52 49 582 269 209 Sensors 445 | . . . . . . 236 209 Terrain 168 | . . . . . 103 65 . Seismic 1287 | 5 341 185 52 49 582 73 . Robot Analysis Total 2 | . 2 . . . . . . Derelict Logs Recovered . | . . . . . . . . Drone Launches . | . . . . . . . . Drone Recoveries . | . . . . . . . . Exploration | -11 -10 -10 -10 -9 -8 -7 -6 ------------- Run | Yrd Mat Min Exi Min Mat Fac Fac Turns Passed 1769 | 82 341 185 52 49 582 269 209 Spaces Moved 1289 | 43 186 115 33 24 293 343 252 Core 13 | 13 . . . . . . . Treads 707 | 30 186 115 33 24 293 26 . Legs . | . . . . . . . . Wheels . | . . . . . . . . Hover 569 | . . . . . . 317 252 Flight . | . . . . . . . . Fastest Speed 45 | 50 160 160 160 160 160 45 45 Average Speed 113 | 126 160 160 160 160 160 57 68 Slowest Speed 300 | 160 160 160 160 160 160 300 180 Overloaded Moves . | . . . . . . . . Propulsion Burnouts . | . . . . . . . . Robots Hopped . | . . . . . . . . Potential Cave-ins . | . . . . . . . . Cave-ins Triggered . | . . . . . . . . Exploration Rate (%) 13 | 4 31 14 8 4 32 9 8 Regions Visited 7 Branch Regions 3 Pre-discovered Areas . | . . . . . . . . Known Exits Taken 1 | . . . . . . 1 . Unknown Exits Taken 6 | 1 1 1 1 1 1 . . Scrap Searched . | . . . . . . . . Spaces Dug 1 | . . . . . . 1 . Terrain Destroyed 44 | . . . . 7 36 1 . Melee 1 | . . . . . . 1 . Projectile . | . . . . . . . . AOE 43 | . . . . 7 36 . . Terrain Rammed . | . . . . . . . . Walls Destroyed . | . . . . . . . . Machines Disabled . | . . . . . . . . Actions | -11 -10 -10 -10 -9 -8 -7 -6 --------- Run | Yrd Mat Min Exi Min Mat Fac Fac Total 1489 | 59 208 116 32 27 362 411 274 Wait 33 | . 2 . . . 15 16 . Move 1282 | 42 185 114 32 23 292 342 252 Hop . | . . . . . . . . Pick Up 23 | . 4 1 . . 6 9 3 Fast Attach 35 | 7 3 . . . 11 13 1 Attach 6 | . . . . . 2 4 . Detach 3 | . . . . . 1 2 . Swap 6 | . . . . . 4 2 . Drop 34 | . 3 . . . 8 20 3 Fire 60 | 10 11 . . 4 23 2 10 Melee 1 | . . . . . . 1 . Ram 5 | . . . . . . . 5 Kick . | . . . . . . . . Crush 1 | . . 1 . . . . . Escape Stasis . | . . . . . . . . Rewire . | . . . . . . . . Trap . | . . . . . . . . Miscellaneous . | . . . . . . . . Route ------- -11/Scrapyard -10/Materials -10/Mines -10/Exiles -9/Mines -8/Materials -7/Factory -6/Factory (discovered 4 exits: Fac x4) History --------- Turn | Location | Event 6 | -11/Scrapyard | Discovered new exit (range 14) 83 | -11/Scrapyard | Entered Materials 237 | -10/Materials | Discovered new exit (range 8) 300 | -10/Materials | Build established: Mutant 424 | -10/Materials | Entered Mines 461 | -10/Mines | Deemed a non-threat by the Exiles lab entrance 461 | -10/Mines | Discovered new exit (range 5) 550 | -10/Mines | Assembled infested the area 609 | -10/Mines | Entered Exiles 640 | -10/Exiles | Discovered new exit (range 14) 661 | -10/Exiles | Entered Mines 662 | -9/Mines | Met a Derelict testing a Signal Generator 705 | -9/Mines | Discovered new exit (range 3) 710 | -9/Mines | Entered Materials 710 | -8/Materials | Evolved 4 slots: Propulsion x2, Utility x2 1279 | -8/Materials | Discovered new exit (range 9) 1292 | -8/Materials | Entered Factory 1292 | -7/Factory | Evolved 2 slots: Utility x2 1425 | -7/Factory | Build established: Scavenger-Mutant 1479 | -7/Factory | Discovered new exit (range 16) 1559 | -7/Factory | Identified exit to Factory 1561 | -7/Factory | Entered another Factory area 1561 | -6/Factory | Evolved 2 slots: Power x1, Utility x1 1568 | -6/Factory | Identified exit to Factory 1639 | -6/Factory | Spotted B-75 Beast 1770 | -6/Factory | Self-destructed Last Messages --------------- 01653_ Massive razor-sharp blades shoot up from within the floor. 01653_ Adv. Beam Rifle severed. 01653_ Imp. Hover Unit severed. 01654_ Triggered Blade Trap. 01654_ Massive razor-sharp blades shoot up from within the floor. 01654_ Cld. Airjet severed. 01654_ Lyr. Light Armor Plating severed. 01656_ Triggered Blade Trap. 01656_ Massive razor-sharp blades shoot up from within the floor. 01656_ Adv. Beam Rifle severed. 01656_ Imp. Hover Unit severed. 01674_ Slammed into R-10 Processor. 01682_ U-05 Engineer lays Concrete. 01685_ R-10 Processor collects Imp. Hover Unit. 01685_ U-05 Engineer lays Concrete. 01689_ R-10 Processor collects Adv. Beam Rifle. 01689_ Slammed into R-10 Processor. 01701_ Acquired Adv. Beam Rifle. 01715_ R-10 Processor suffers critical hit (Burn). 01723_ ALERT: Security rotation in progress. Map ----- +----------------------------------------------------+ | ?????????????????????????????????????????????????? | | ?????????????????????????????????????????????????? | | ?????????????????????????????????????????????????? | | ?????????????????????????????????????????????????? | | ?????????????????????????????????????????????????? | | ?????????????????????????????????????????????????? | | ?????????????????????????????????????????????????? | | ?????????????????????????????????????????????????? | | ?????????????????????????????????????????????????? | | ?????????????????????????????????????????????????? | | ?????????????????????????????????????????????????? | | ?????????????????????????????????????????????????? | | ?????????????????????????????????????????????????? | | ?????????????????????????????????????????????????? | | ???????????????????????????????? ?????????????? | | ???????????????????????????????? ???????????? | | ???????????????????????????????? ??????????? | | ???????????????????????????????/ #??????????? | | ???????????????????????????????/ #??????????? | | ?????????????????????????????? #??????????? | | ??????????????????????????????? #??????????? | | ??????????????????????????????? #??????????? | | ??????????????????????????????? #??????????? | | ???????????????????????????????? #??????????? | | ??????????????????##+#######????# #??????????? | | ??????????????????# @ #????# #??????????? | | ??????????????????# """ #????# #??????????? | | ??????????????????# """"" ###### #####??????? | | ??????????????????+ """"" + +??????? | | ?????????????w????# ###### ###????????? | | ??????????????????# """ #????# #??????##### | | ??????????????????# """"" #????# #??????# | | ??????????????????# """"" #????# ######## | | ??????????????????#!? #????# + | | ?????????????????????#####+#????# # | | ????????????????????????????????# # | | ????????????????????????????????# # | | ????????????????????????????????# # | | ????????????????????????????????# # | | ????????????????????????????????# ###+# | | ??????????????????????????????? | | ?????????????????????????????? | | ????????????????????????????? | | ???????????????????????????? | | ???????????????????????????? | | ???????????????????????????? ################ | | ??????????????????????????????????????????????? | | ????????????????????????????????????????????????? | | ????????????????????????????????????????????????? | | ?????????????????????????????????????????????????? | +----------------------------------------------------+ Best States ------------- Heat Dissipation 37 Energy Generation 14 Energy Capacity 250 Matter Stores 300 Matter Capacity 300 Sight Range 16 Robot Scan Range 15 Terrain Scan Range 16 Terrain Scan Density 10 Armor Coverage 150 Evasion (%) 56 Targeting Accuracy 8 Recoil Reduction 4 Particle Charging 15 Offensive Hacking 10 Item Schematics ----------------- None Robot Schematics ------------------ None Fabricated ------------ Nothing Repaired ---------- Nothing Alien Tech Used ----------------- None Achievements -------------- None Challenges ------------ None Game ------ Seed StormSapperChainsaw Manual? 0 Play Time 00:22:43 Cumulative 82.6 hours Start 2025.08.28 @ 19:42:57 End 2025.08.28 @ 20:04:23 Sessions 1 Manual Loads 0 Difficulty Rogue Special Mode None Game No. 69 Rogue 24 Adventurer 45 Explorer 0 Win Type - Total 3 Types 2/0/0/1/0/0/0/0/0/0 Lore% 41 Gallery% 54 Achievement% 53 Wizard Run 0 Options --------- Layout 0 ASCII 1 Keyboard 0 Movement Mouse Keybinds 0 Fullscreen 1 Font 18/VGA_Max Map View 38x25 Zoom Use 54% Tactical HUD 1 Map Filters NONE Filters NONE Steam 1 RUN: 101c5435-fb31-4398-9942-4cbab516e45f